[Event "WYCC 2018 G18"]
[Site "Halkidiki"]
[Date "2018.10.29"]
[Round "10"]
[White "Arpita, Mukherjee"]
[Black "Avramidou, Anastasia"]
[Result "1-0"]
[ECO "B32"]
[WhiteElo "2147"]
[BlackElo "2285"]
[Annotator "NA"]
[PlyCount "127"]
[EventDate "2018.10.20"]
[EventType "swiss"]
[EventCountry "GRE"]
[SourceTitle "playchess.com"]
[Source "ChessBase"]
[SourceQuality "1"]
[TimeControl "40/5400+30:1800+30"]

1. e4 {[%emt 0:00:00]} c5 {[%emt 0:00:00]} 2. Nf3 {[%emt 0:00:01]} Nc6 {[%emt 0:00:00]} 3. d4 {[%emt 0:00:13]} cxd4 {[%emt 0:00:00]} 4. Nxd4 {[%emt 0:00:06]} Qb6 {[%emt 0:00:00]} 5. Nb3 {[%emt 0:00:41]} Nf6 {[%emt 0:00:00]} 6. Nc3 {[%emt 0:00:42]} e6 {[%emt 0:00:02]} 7. Be3 {[%emt 0:02:19]} Qc7 {[%emt 0:00:06]} 8. a3 {[%emt 0:02:08]} a6 {[%emt 0:00:07]} 9. Be2 {[%emt 0:00:38]} Be7 {[%emt 0:00:18] B33: Sicilian: Pelikan and Sveshnikov Variations} 10. f4 {[%emt 0:01:07]} d6 {[%emt 0:00:07]} 11. O-O {[%emt 0:01:06]} O-O {[%emt 0:01:54]} 12. Qe1 {[%emt 0:06:44]} Re8 {[%emt 0:04:53]} (12... b5 13. Nd4 Bb7 14. Qg3 Kh8 15. Nxc6 Bxc6 16. Bd4 Rad8 17. Bf3 Rg8 18. Rad1 {0-1 (40) Plat,V (2522)-Movsesian,S (2680) Minsk 2017}) 13. Qg3 {[%emt 0:01:40]} b5 {[%emt 0:10:34]} 14. Rad1 {[%emt 0:14:09]} Bb7 {[%emt 0:16:03]} 15. f5 $146 {[%emt 0:05:21]} ({Predecessor:} 15. Kh1 Nd7 16. f5 Nce5 17. fxe6 fxe6 18. Bh5 {0-1 (85) Medvedovski,M (1980)-Sabirov,R (2067) Osnabrueck 2015}) 15... Kh8 {[%emt 0:04:30]} 16. Qh3 {[%emt 0:12:16]} b4 {[%emt 0:12:32]} 17. axb4 {[%emt 0:02:57]} Nxb4 {[%emt 0:00:26]} 18. fxe6 {[%emt 0:06:39]} fxe6 {[%emt 0:00:09]} 19. Nd4 {[%emt 0:05:30]} e5 {[%emt 0:09:18]} 20. Ne6 {[%emt 0:06:32]} Qc8 {[%emt 0:13:35]} 21. Bg4 {[%emt 0:04:36]} Nxg4 {[%emt 0:01:00]} 22. Qxg4 {[%emt 0:00:06]} Bg5 {[%emt 0:00:03]} 23. Bxg5 $18 {[%emt 0:00:42]} Rxe6 {[%emt 0:00:06]} 24. Rf7 {[%emt 0:00:44]} Re8 {[%emt 0:08:07]} 25. Qxc8 {[%emt 0:02:30]} Bxc8 {[%emt 0:00:03]} 26. Rxd6 {[%emt 0:00:20]} Nxc2 {[%emt 0:02:25]} 27. Re7 {[%emt 0:04:02]} Bg4 {[%emt 0:02:14]} 28. Rxa6 {[%emt 0:00:32]} Rab8 {[%emt 0:03:57]} 29. Rb6 {[%emt 0:02:22]} Ra8 {[%emt 0:01:36]} 30. Rxe8+ {[%emt 0:00:20]} Rxe8 {[%emt 0:00:04]} 31. h3 {[%emt 0:00:17]} Bh5 {[%emt 0:00:17]} 32. b4 {[%emt 0:00:34]} Kg8 {[%emt 0:01:27]} 33. b5 {[%emt 0:00:37]} Nd4 {[%emt 0:02:50]} 34. Rd6 {[%emt 0:07:45]} Rb8 {[%emt 0:04:50]} 35. b6 {[%emt 0:00:31]} Ne2+ {[%emt 0:01:56]} 36. Nxe2 {[%emt 0:00:06]} Bxe2 {[%emt 0:00:03]} 37. Bd8 {[%emt 0:00:16]} Ba6 {[%emt 0:01:17]} 38. Bc7 {[%emt 0:02:08]} Rf8 {[%emt 0:00:27]} 39. Rd7 {[%emt 0:01:23]} Rf7 {[%emt 0:01:16]} 40. Rd1 {[%emt 0:00:00]} Rf8 {[%emt 0:00:00]} 41. Ra1 {[%emt 0:00:59]} Bb7 {[%emt 0:00:57]} 42. Ra7 {[%emt 0:00:18]} Bxe4 {[%emt 0:00:04]} 43. b7 Bxb7 {[%emt 0:00:04]} 44. Rxb7 {[%emt 0:00:16]} Rf5 {[%emt 0:00:04]} 45. Rb5 {[%emt 0:00:11]} h6 {[%emt 0:00:31]} 46. Rxe5 {[%emt 0:00:14]} Rf7 {[%emt 0:00:04]} 47. Re8+ {[%emt 0:00:43]} Kh7 {[%emt 0:00:07]} 48. Be5 {[%emt 0:00:08]} Rd7 {[%emt 0:00:22]} 49. Kh2 {[%emt 0:00:09]} Rb7 {[%emt 0:00:05]} 50. Kg3 {[%emt 0:00:51]} Ra7 {[%emt 0:00:04]} 51. Rc8 {[%emt 0:00:20]} Ra5 {[%emt 0:00:45]} 52. Kf4 {[%emt 0:00:45]} Ra2 {[%emt 0:00:17]} 53. g3 {[%emt 0:00:26]} Rf2+ {[%emt 0:00:36]} 54. Ke3 {[%emt 0:00:30]} Rf5 {[%emt 0:00:22]} 55. Ke4 {[%emt 0:00:09]} Rf1 {[%emt 0:00:07]} 56. Rc7 {[%emt 0:00:19]} h5 {[%emt 0:00:06]} 57. Rxg7+ {[%emt 0:00:21]} Kh6 {[%emt 0:00:04]} 58. Rg8 {[%emt 0:00:21]} Kh7 {[%emt 0:00:14]} 59. Rg5 {[%emt 0:00:17]} Kh6 {[%emt 0:00:05]} 60. Bf4 {[%emt 0:00:32]} Rf2 {[%emt 0:00:38]} 61. Kf5 {[%emt 0:00:20]} Ra2 {[%emt 0:00:16]} 62. Rg6+ {[%emt 0:00:10]} Kh7 {[%emt 0:00:04]} 63. Rh6+ {[%emt 0:00:07]} Kg7 {[%emt 0:00:03]} 64. Rxh5 {[%emt 0:00:06]} 1-0

[Event "WYCC 2018 G18"]
[Site "Halkidiki"]
[Date "2018.10.29"]
[Round "10"]
[White "Tejaswini, Sagar"]
[Black "Obolentseva, Alexandra"]
[Result "0-1"]
[ECO "B90"]
[WhiteElo "2139"]
[BlackElo "2298"]
[Annotator "NA"]
[PlyCount "114"]
[EventDate "2018.10.20"]
[EventType "swiss"]
[EventCountry "GRE"]
[SourceTitle "playchess.com"]
[Source "ChessBase"]
[SourceQuality "1"]
[TimeControl "40/5400+30:1800+30"]

1. e4 {[%emt 0:00:00]} c5 {[%emt 0:00:00]} 2. Nf3 {[%emt 0:00:00]} d6 {[%emt 0:00:00]} 3. d4 {[%emt 0:00:00]} cxd4 {[%emt 0:00:00]} 4. Nxd4 {[%emt 0:00:00]} Nf6 {[%emt 0:00:00]} 5. Nc3 {[%emt 0:00:00]} a6 {[%emt 0:00:02]} 6. h3 {[%emt 0:00:00]} e5 {[%emt 0:00:10]} 7. Nde2 {[%emt 0:00:02]} h5 {[%emt 0:00:08] B90: Sicilian Najdorf: Unusual White 6th moves, 6 Be3 Ng4 and 6 Be3 e5} (7... b5 8. Ng3 Nbd7 9. Bg5 h6 10. Be3 Bb7 11. Bd3 h5 12. Bg5 g6 13. O-O Be7 14. a3 h4 15. Nge2 Nc5 16. Bxf6 Bxf6 {1-0 (48) Dominguez Perez,L (2739)-Vachier Lagrave,M (2779) chess.com INT 2018}) 8. g3 {[%emt 0:00:13]} Be6 {[%emt 0:00:06]} 9. Bg2 {[%emt 0:00:11]} b5 {[%emt 0:00:53]} 10. Be3 {[%emt 0:01:01]} Nbd7 {[%emt 0:00:42]} 11. O-O {[%emt 0:00:40]} Be7 {[%emt 0:01:08]} 12. Nd5 {[%emt 0:00:35]} Nxd5 {[%emt 0:00:11]} 13. exd5 {[%emt 0:00:04]} Bf5 {[%emt 0:00:07]} 14. f4 {[%emt 0:01:21]} Rc8 {[%emt 0:00:05]} 15. c3 {[%emt 0:00:17] [#]} Bh7 $146 {[%emt 0:00:07]} 16. fxe5 {[%emt 0:04:08]} dxe5 {[%emt 0:00:07]} 17. d6 {[%emt 0:04:43]} Bg5 {[%emt 0:00:37]} 18. Qd2 {[%emt 0:04:31]} Bxe3+ {[%emt 0:05:56]} 19. Qxe3 {[%emt 0:00:09]} O-O {[%emt 0:00:08]} 20. a4 {[%emt 0:11:16]} Qb6 {[%emt 0:04:02]} 21. Qxb6 {[%emt 0:02:52]} Nxb6 {[%emt 0:00:21]} 22. Bb7 {[%emt 0:04:17]} Rb8 {[%emt 0:05:09]} 23. Bxa6 {[%emt 0:00:53]} Nxa4 {[%emt 0:00:22]} 24. b3 {[%emt 0:18:29]} Nc5 {[%emt 0:01:30]} 25. b4 {[%emt 0:02:18]} Ne4 {[%emt 0:02:55]} 26. d7 {[%emt 0:04:11]} Rfd8 {[%emt 0:00:52]} 27. Rad1 {[%emt 0:03:01]} Rb6 {[%emt 0:01:03]} 28. Bc8 {[%emt 0:00:13]} Nd6 {[%emt 0:00:18]} 29. Rd5 {[%emt 0:03:03] [#]} f6 $1 {[%emt 0:00:05]} 30. g4 $19 {[%emt 0:07:22]} Be4 {[%emt 0:02:17]} 31. Rc5 {[%emt 0:03:40]} h4 {[%emt 0:05:19]} 32. Ra1 {[%emt 0:05:20]} Rb8 {[%emt 0:00:55]} 33. Ba6 {[%emt 0:03:52]} Rxd7 {[%emt 0:00:40]} 34. Rd1 {[%emt 0:00:26]} Bf3 {[%emt 0:02:24]} 35. Bxb5 {[%emt 0:04:42]} Rxb5 {[%emt 0:00:09]} 36. Rxb5 {[%emt 0:00:01]} Nxb5 {[%emt 0:00:19]} 37. Rxd7 {[%emt 0:00:09]} Bxe2 {[%emt 0:00:05]} 38. Rd8+ {[%emt 0:00:41]} Kf7 {[%emt 0:01:11]} 39. Kf2 {[%emt 0:00:49]} Bc4 {[%emt 0:01:00]} 40. Rc8 {[%emt 0:00:00]} Be6 {[%emt 0:00:00]} 41. Rc5 {[%emt 0:03:50]} Nd6 {[%emt 0:01:54]} 42. Ke3 {[%emt 0:00:38]} f5 {[%emt 0:02:30]} 43. gxf5 {[%emt 0:04:09]} Nxf5+ {[%emt 0:00:53]} 44. Ke4 {[%emt 0:07:15]} Kf6 {[%emt 0:00:23]} 45. b5 {[%emt 0:03:52]} Nd6+ {[%emt 0:00:52]} 46. Kf3 {[%emt 0:00:07]} Bxh3 {[%emt 0:01:47]} 47. b6 {[%emt 0:00:08]} Bf5 {[%emt 0:00:42]} 48. Rc7 {[%emt 0:01:20]} g5 {[%emt 0:00:23]} 49. c4 {[%emt 0:01:29]} g4+ {[%emt 0:00:20]} 50. Kf2 {[%emt 0:00:04]} g3+ {[%emt 0:00:51]} 51. Kg2 {[%emt 0:00:22]} Be4+ {[%emt 0:01:32]} 52. Kh3 {[%emt 0:00:04]} Bf5+ {[%emt 0:02:30]} 53. Kg2 {[%emt 0:00:03]} Ne4 {[%emt 0:01:22]} 54. Rh7 {[%emt 0:07:13]} h3+ {[%emt 0:00:06]} 55. Kf1 {[%emt 0:00:52]} Bxh7 {[%emt 0:00:27]} 56. b7 {[%emt 0:00:11]} h2 {[%emt 0:00:26]} 57. Kg2 {[%emt 0:01:01]} Nf2 {[%emt 0:00:15]} 0-1

[Event "WYCC 2018 G18"]
[Site "Halkidiki"]
[Date "2018.10.29"]
[Round "10"]
[White "Redondo Benavente, Ana"]
[Black "Caballero Quijano, Mitzy Mishell"]
[Result "1-0"]
[ECO "C10"]
[WhiteElo "2055"]
[BlackElo "1956"]
[Annotator "NA"]
[PlyCount "105"]
[EventDate "2018.10.20"]
[EventType "swiss"]
[EventCountry "GRE"]
[SourceTitle "playchess.com"]
[Source "ChessBase"]
[SourceQuality "1"]
[TimeControl "40/5400+30:1800+30"]

1. e4 {[%emt 0:00:00]} e6 {[%emt 0:00:00]} 2. d4 {[%emt 0:00:00]} d5 {[%emt 0:00:00]} 3. Nd2 {[%emt 0:00:00]} dxe4 {[%emt 0:00:00]} 4. Nxe4 {[%emt 0:00:00]} Nd7 {[%emt 0:00:14] LiveBook: 3931 Games} 5. Bd3 {[%emt 0:00:09]} Ngf6 {[%emt 0:00:08]} 6. Qe2 {[%emt 0:00:50]} Nxe4 {[%emt 0:05:49]} 7. Bxe4 {[%emt 0:00:08]} Nf6 {[%emt 0:00:20]} 8. Bxb7 {[%emt 0:02:50] C10: French with 3 Nc3: Unusual Black 3rd moves and 3...dxe4} Bxb7 {[%emt 0:05:47]} 9. Qb5+ {[%emt 0:00:06]} Qd7 {[%emt 0:00:11]} (9... Nd7 10. Qxb7 Bd6 11. Nf3 O-O 12. O-O a5 13. a4 Rb8 14. Qa6 Ra8 15. Qe2 c5 16. dxc5 Nxc5 {½-½ (93) Belyakov,B (2486)-Timofeev,A (2549) Sochi 2017}) 10. Qxb7 {[%emt 0:00:07]} Rd8 {[%emt 0:00:03]} 11. Nf3 {[%emt 0:01:07]} Bd6 {[%emt 0:04:42]} 12. O-O {[%emt 0:07:28]} O-O {[%emt 0:00:08]} 13. Qa6 {[%emt 0:00:46]} Nd5 $146 {[%emt 0:00:35]} ({Predecessor:} 13... Rb8 14. Qe2 c5 15. dxc5 Bxc5 {1-0 (29) Rainfray,A (2422)-Saric,A (2175) Litohoto 1999}) 14. Qe2 {[%emt 0:00:24]} c5 {[%emt 0:01:28]} 15. c4 {[%emt 0:08:08]} Nb6 {[%emt 0:02:06]} 16. dxc5 {[%emt 0:03:04]} Bxc5 {[%emt 0:00:09]} 17. Bf4 {[%emt 0:01:18]} a5 $16 {[%emt 0:03:27]} 18. Rad1 {[%emt 0:03:06]} Qb7 {[%emt 0:02:31]} 19. b3 {[%emt 0:03:10]} a4 {[%emt 0:02:20]} 20. Qc2 {[%emt 0:10:44]} f6 {[%emt 0:02:04]} 21. Bd2 {[%emt 0:02:31]} axb3 {[%emt 0:00:39]} 22. axb3 {[%emt 0:00:01]} Na8 {[%emt 0:02:12]} 23. b4 {[%emt 0:05:32]} Ba7 {[%emt 0:00:10]} 24. b5 {[%emt 0:02:05]} e5 {[%emt 0:00:41]} 25. Ba5 {[%emt 0:02:21]} Rc8 {[%emt 0:00:26]} 26. Qb3 {[%emt 0:00:42]} Bc5 {[%emt 0:01:28]} 27. Bb4 {[%emt 0:07:28]} Nb6 {[%emt 0:00:08]} 28. Nd2 {[%emt 0:01:42]} Qf7 {[%emt 0:01:18]} 29. Rc1 {[%emt 0:00:54]} Rfd8 {[%emt 0:00:21]} 30. Rc2 {[%emt 0:04:31]} Rd4 {[%emt 0:00:16]} 31. Bxc5 {[%emt 0:03:04]} Rxc5 {[%emt 0:00:07]} 32. Qa3 {[%emt 0:02:29]} Qc7 {[%emt 0:01:59]} 33. Rfc1 {[%emt 0:02:37]} Qd6 {[%emt 0:03:38]} 34. Qa2 {[%emt 0:01:39]} Kf8 {[%emt 0:01:03]} 35. h3 {[%emt 0:02:06]} e4 {[%emt 0:00:10]} 36. Re1 {[%emt 0:02:03]} f5 {[%emt 0:01:10]} 37. g3 {[%emt 0:03:14]} Rc8 {[%emt 0:01:03]} 38. Kg2 {[%emt 0:04:20]} Ra8 {[%emt 0:05:40]} 39. Qb2 {[%emt 0:00:11]} Na4 {[%emt 0:02:15]} 40. Qc1 {[%emt 0:00:00]} Nc5 {[%emt 0:00:00]} 41. Re2 {[%emt 0:02:12]} f4 {[%emt 0:01:23]} 42. Kh2 {[%emt 0:04:11]} f3 {[%emt 0:07:23]} 43. Re3 {[%emt 0:00:37]} Rd8 {[%emt 0:05:30]} 44. Qa3 {[%emt 0:07:42]} Rd3 {[%emt 0:15:44]} 45. Rxd3 {[%emt 0:01:04]} exd3 {[%emt 0:00:11]} 46. Ra2 {[%emt 0:04:01]} Kg8 {[%emt 0:10:34]} 47. Nxf3 {[%emt 0:05:04]} Rf8 {[%emt 0:00:06]} 48. Kg2 {[%emt 0:01:05]} Qe7 {[%emt 0:00:10]} 49. Qa7 {[%emt 0:02:21]} Qe4 {[%emt 0:04:40]} 50. Qxc5 {[%emt 0:00:12]} Qxf3+ {[%emt 0:00:04]} 51. Kh2 {[%emt 0:00:08]} Rd8 {[%emt 0:00:04]} 52. Rd2 {[%emt 0:00:42]} Qe4 {[%emt 0:00:05]} 53. b6 {[%emt 0:01:59]} 1-0

[Event "WYCC 2018 G18"]
[Site "Halkidiki"]
[Date "2018.10.29"]
[Round "10"]
[White "Avetisyan, Mariam"]
[Black "Hamedi Nia, Vesal"]
[Result "1-0"]
[ECO "D37"]
[WhiteElo "2049"]
[BlackElo "1987"]
[Annotator "NA"]
[PlyCount "75"]
[EventDate "2018.10.20"]
[EventType "swiss"]
[EventCountry "GRE"]
[SourceTitle "playchess.com"]
[Source "ChessBase"]
[SourceQuality "1"]
[TimeControl "40/5400+30:1800+30"]

1. d4 {[%emt 0:00:00]} d5 {[%emt 0:00:00]} 2. c4 {[%emt 0:00:00]} e6 {[%emt 0:00:00]} 3. Nc3 {[%emt 0:00:00]} Be7 {[%emt 0:00:00]} 4. Nf3 {[%emt 0:00:00]} Nf6 $11 {[%emt 0:00:00] LiveBook: 19823 Games} 5. Bf4 {[%emt 0:00:00]} O-O {[%emt 0:00:01]} 6. e3 {[%emt 0:00:00]} Nbd7 {[%emt 0:03:33]} 7. c5 {[%emt 0:09:43]} Ne4 8. Qc2 {[%emt 0:00:09]} Nxc3 {[%emt 0:13:09]} 9. Qxc3 {[%emt 0:14:15]} a5 10. Qc2 c6 {[%emt 0:16:11]} 11. Bd3 {[%emt 0:00:39]} h6 {[%emt 0:01:19]} 12. Rc1 {[%emt 0:12:14]} Nb8 {[%emt 0:40:07]} 13. Ne5 {[%emt 0:13:10]} b6 {[%emt 0:11:26]} 14. cxb6 {[%emt 0:05:39]} Bb4+ {[%emt 0:05:31]} 15. Ke2 {[%emt 0:00:34]} Bb7 16. h4 Qxb6 {[%emt 0:01:43]} 17. Rh3 {[%emt 0:12:24]} Ba6 {[%emt 0:00:41]} 18. Rg3 {[%emt 0:02:54]} Kh8 19. Kf3 {[%emt 0:00:05]} Bxd3 {[%emt 0:01:35]} 20. Qxd3 Bd6 21. Qc2 {[%emt 0:04:20]} Bxe5 {[%emt 0:04:03]} 22. Bxe5 {[%emt 0:00:06]} f6 {[%emt 0:00:01]} 23. Bd6 {[%emt 0:00:14]} Rf7 {[%emt 0:01:36]} 24. Qg6 {[%emt 0:00:21]} Raa7 {[%emt 0:00:04]} 25. Rc3 {[%emt 0:04:03]} Na6 {[%emt 0:00:55]} 26. Qc2 {[%emt 0:06:46]} Rac7 {[%emt 0:00:06]} 27. Bxc7 {[%emt 0:00:37]} Rxc7 {[%emt 0:00:27]} 28. Rh3 {[%emt 0:00:26]} f5 {[%emt 0:00:52]} 29. Rh1 Qb7 {[%emt 0:00:14]} 30. Rc1 {[%emt 0:01:09]} Nb4 {[%emt 0:00:54]} 31. Qa4 {[%emt 0:01:46]} Qc8 {[%emt 0:00:26]} 32. Qxa5 {[%emt 0:03:35]} Rb7 {[%emt 0:00:28]} 33. a3 Qe8 34. axb4 {[%emt 0:02:07]} Qh5+ {[%emt 0:01:03]} 35. Kg3 {[%emt 0:00:00]} g5 36. Qa8+ {[%emt 0:00:00]} Kg7 {[%emt 0:00:39]} 37. Qxb7+ {[%emt 0:00:21]} Kg6 {[%emt 0:00:05]} 38. Kh2 {[%emt 0:00:07]} 1-0

[Event "WYCC 2018 G18"]
[Site "Halkidiki"]
[Date "2018.10.29"]
[Round "10"]
[White "Tarini Goyal"]
[Black "Nguyen, Thi Minh Thu"]
[Result "1-0"]
[ECO "E64"]
[WhiteElo "2026"]
[BlackElo "1849"]
[Annotator "NA"]
[PlyCount "121"]
[EventDate "2018.10.20"]
[EventType "swiss"]
[EventCountry "GRE"]
[SourceTitle "playchess.com"]
[Source "ChessBase"]
[SourceQuality "1"]
[TimeControl "40/5400+30:1800+30"]

1. c4 {[%emt 0:00:00]} Nf6 {[%emt 0:00:03]} 2. d4 {[%emt 0:00:06]} g6 {[%emt 0:00:54]} 3. g3 {[%emt 0:00:26]} Bg7 {[%emt 0:02:02]} 4. Bg2 {[%emt 0:00:07]} O-O {[%emt 0:00:31]} 5. Nf3 {[%emt 0:00:07]} d6 {[%emt 0:00:41]} 6. Nc3 {[%emt 0:00:17]} c5 {[%emt 0:03:27]} 7. d5 {[%emt 0:01:30]} Na6 {[%emt 0:00:34]} 8. O-O {[%emt 0:00:28]} Nc7 {[%emt 0:00:30]} 9. e4 {[%emt 0:04:03]} Bg4 {[%emt 0:02:24]} 10. h3 {[%emt 0:00:30]} Bxf3 {[%emt 0:00:25]} 11. Qxf3 {[%emt 0:02:15]} a6 {[%emt 0:01:41]} 12. a4 {[%emt 0:01:43]} b5 {[%emt 0:01:24]} 13. Bf4 {[%emt 0:30:09]} Nd7 {[%emt 0:02:14]} 14. axb5 {[%emt 0:02:31]} axb5 {[%emt 0:02:55]} 15. cxb5 {[%emt 0:00:10]} Qb8 {[%emt 0:05:17]} 16. Qe2 {[%emt 0:02:20]} Qb6 {[%emt 0:03:21]} 17. Rfb1 {[%emt 0:05:43]} Rfb8 {[%emt 0:10:19]} 18. Bf1 {[%emt 0:00:36]} Ra5 {[%emt 0:02:49]} 19. Bg5 {[%emt 0:09:47]} Kf8 {[%emt 0:05:17]} 20. Qe3 {[%emt 0:03:31]} Rba8 {[%emt 0:04:52]} 21. Rxa5 {[%emt 0:01:37]} Rxa5 {[%emt 0:00:13]} 22. Bh6 {[%emt 0:01:39]} Qa7 {[%emt 0:01:01]} 23. Bxg7+ {[%emt 0:01:08]} Kxg7 {[%emt 0:00:08]} 24. Qc1 {[%emt 0:07:21]} Nb6 {[%emt 0:07:18]} 25. b3 {[%emt 0:02:59]} Nc8 {[%emt 0:03:47]} 26. Qb2 {[%emt 0:00:58]} Kg8 {[%emt 0:02:07]} 27. b4 {[%emt 0:05:31]} cxb4 {[%emt 0:06:25]} 28. Qxb4 {[%emt 0:00:07]} Nb6 {[%emt 0:00:04]} 29. e5 {[%emt 0:04:01]} Ra3 {[%emt 0:03:16]} 30. exd6 {[%emt 0:01:32]} exd6 {[%emt 0:02:09]} 31. Qd4 {[%emt 0:03:53]} Nbxd5 {[%emt 0:10:12]} 32. Qxa7 {[%emt 0:00:08]} Rxa7 {[%emt 0:00:07]} 33. b6 {[%emt 0:06:56]} Nxc3 {[%emt 0:00:05]} 34. Rb3 {[%emt 0:00:08]} Rb7 {[%emt 0:00:04]} 35. Rxc3 {[%emt 0:00:07]} Ne6 {[%emt 0:01:16]} 36. Rc6 {[%emt 0:00:50]} Nd4 {[%emt 0:02:26]} 37. Rxd6 {[%emt 0:00:10]} Nf5 {[%emt 0:00:06]} 38. Rc6 {[%emt 0:00:11]} Nd4 {[%emt 0:00:05]} 39. Ba6 {[%emt 0:02:20]} Nxc6 {[%emt 0:00:17]} 40. Bxb7 {[%emt 0:00:00]} Nb8 {[%emt 0:00:00]} 41. Bg2 {[%emt 0:06:15]} Kg7 {[%emt 0:00:34]} 42. Kf1 {[%emt 0:01:07]} Kf6 {[%emt 0:00:26]} 43. Ke2 {[%emt 0:00:05]} Ke5 {[%emt 0:00:22]} 44. Kd3 {[%emt 0:00:16]} Nd7 {[%emt 0:01:11]} 45. b7 {[%emt 0:00:08]} Kd6 {[%emt 0:00:22]} 46. Kd4 {[%emt 0:02:11]} f6 {[%emt 0:00:34]} 47. h4 {[%emt 0:02:23]} h6 {[%emt 0:01:03]} 48. Be4 {[%emt 0:02:46]} f5 {[%emt 0:01:42]} 49. Bg2 {[%emt 0:00:08]} g5 {[%emt 0:00:28]} 50. hxg5 {[%emt 0:03:29]} hxg5 {[%emt 0:00:09]} 51. Bh3 {[%emt 0:00:08]} g4 {[%emt 0:00:33]} 52. Bf1 {[%emt 0:01:07]} Nb8 {[%emt 0:00:38]} 53. Bd3 {[%emt 0:04:51]} Nc6+ {[%emt 0:00:19]} 54. Ke3 {[%emt 0:02:03]} Ke5 {[%emt 0:00:07]} 55. Bf1 {[%emt 0:00:15]} Nb8 {[%emt 0:00:24]} 56. Bb5 {[%emt 0:00:12]} f4+ {[%emt 0:00:37]} 57. gxf4+ {[%emt 0:00:08]} Kf5 {[%emt 0:00:09]} 58. Bd3+ {[%emt 0:01:22]} Kf6 {[%emt 0:00:06]} 59. Kd4 {[%emt 0:01:14]} Ke6 {[%emt 0:00:23]} 60. Kc5 {[%emt 0:00:54]} Kd7 {[%emt 0:01:05]} 61. Kb6 {[%emt 0:00:14]} 1-0

[Event "WYCC 2018 G18"]
[Site "Halkidiki"]
[Date "2018.10.29"]
[Round "10"]
[White "Greibrokk, Ingrid"]
[Black "Mocanu, Valeria"]
[Result "1/2-1/2"]
[ECO "A14"]
[WhiteElo "2018"]
[BlackElo "1800"]
[Annotator "NA"]
[PlyCount "104"]
[EventDate "2018.10.20"]
[EventType "swiss"]
[EventCountry "GRE"]
[SourceTitle "playchess.com"]
[Source "ChessBase"]
[SourceQuality "1"]
[TimeControl "40/5400+30:1800+30"]

1. c4 {[%emt 0:00:00]} e6 {[%emt 0:00:00]} 2. g3 {[%emt 0:00:00]} d5 {[%emt 0:00:00]} 3. Bg2 {[%emt 0:00:00]} Nf6 {[%emt 0:00:08]} 4. Nf3 {[%emt 0:00:00]} Be7 {[%emt 0:00:11]} 5. O-O {[%emt 0:00:04]} O-O {[%emt 0:00:04]} 6. Qc2 {[%emt 0:00:19]} d4 {[%emt 0:00:19]} 7. b3 {[%emt 0:00:53]} c5 {[%emt 0:02:42]} 8. d3 {[%emt 0:19:23]} Nc6 {[%emt 0:00:52]} 9. e4 {[%emt 0:00:27]} dxe3 {[%emt 0:01:14]} 10. Bxe3 {[%emt 0:02:54]} Nb4 {[%emt 0:05:54]} 11. Qc3 {[%emt 0:00:54]} Qxd3 {[%emt 0:00:37]} 12. Qxd3 {[%emt 0:00:16]} Nxd3 {[%emt 0:00:05]} 13. a3 {[%emt 0:01:01]} Ng4 {[%emt 0:06:25]} 14. Rd1 {[%emt 0:14:06]} Nxe3 {[%emt 0:20:00]} 15. fxe3 {[%emt 0:00:15]} Bf6 {[%emt 0:00:12]} 16. Ra2 {[%emt 0:00:04]} Ne5 {[%emt 0:00:30]} 17. Nxe5 {[%emt 0:00:26]} Bxe5 {[%emt 0:00:04]} 18. Rad2 {[%emt 0:00:04]} Bf6 {[%emt 0:11:04]} 19. Rd3 {[%emt 0:03:33]} Rb8 {[%emt 0:06:16]} 20. Nc3 {[%emt 0:00:46]} Bxc3 {[%emt 0:14:10]} 21. Rxc3 {[%emt 0:00:05]} b6 {[%emt 0:10:24]} 22. Rcd3 {[%emt 0:00:17]} e5 {[%emt 0:06:55]} 23. Rd6 {[%emt 0:03:06]} Bg4 {[%emt 0:02:58]} 24. R1d5 {[%emt 0:01:30]} Be6 {[%emt 0:01:52]} 25. Rxe5 {[%emt 0:00:34]} Rbd8 {[%emt 0:00:27]} 26. Rxd8 {[%emt 0:01:18]} Rxd8 {[%emt 0:00:04]} 27. Bd5 {[%emt 0:01:44]} Bxd5 {[%emt 0:01:59]} 28. cxd5 {[%emt 0:04:21]} Kf8 {[%emt 0:00:15]} 29. e4 Rd6 {[%emt 0:01:41]} 30. Rf5 {[%emt 0:05:28]} Ke7 {[%emt 0:01:03]} 31. Kg2 {[%emt 0:02:58]} g6 {[%emt 0:01:27]} 32. Rf3 f5 33. exf5 {[%emt 0:01:05]} Rxd5 {[%emt 0:00:36]} 34. fxg6 {[%emt 0:00:34]} hxg6 {[%emt 0:00:04]} 35. g4 {[%emt 0:00:52]} b5 {[%emt 0:01:33]} 36. h4 {[%emt 0:03:41]} c4 {[%emt 0:02:04]} 37. Kg3 {[%emt 0:03:25]} cxb3 {[%emt 0:03:45]} 38. Rxb3 {[%emt 0:00:07]} a5 {[%emt 0:00:22]} 39. Kf3 {[%emt 0:02:56]} Kd6 {[%emt 0:00:39]} 40. Ke4 {[%emt 0:00:00]} Re5+ {[%emt 0:00:00]} 41. Kf4 {[%emt 0:00:42]} Rd5 {[%emt 0:06:04]} 42. Rh3 {[%emt 0:01:32]} b4 {[%emt 0:03:49]} 43. axb4 {[%emt 0:01:54]} axb4 {[%emt 0:00:04]} 44. h5 {[%emt 0:00:37]} gxh5 {[%emt 0:00:14]} 45. gxh5 {[%emt 0:00:10]} Kc5 {[%emt 0:03:26]} 46. h6 {[%emt 0:01:20]} Rd8 {[%emt 0:05:04]} 47. h7 {[%emt 0:02:03]} Rh8 {[%emt 0:00:11]} 48. Ke3 {[%emt 0:00:46]} Kd5 {[%emt 0:03:11]} 49. Kd3 {[%emt 0:00:47]} Ke6 {[%emt 0:00:09]} 50. Kc4 {[%emt 0:00:09]} Kf7 {[%emt 0:00:11]} 51. Kxb4 {[%emt 0:00:31]} Kg7 {[%emt 0:00:06]} 52. Rg3+ {[%emt 0:00:05]} Kxh7 {[%emt 0:00:08]} 1/2-1/2